bitfinex-derivatives/quotes_SOLF0:USTF0_20250919
["timestamp","ask_amount","ask_price","bid_price","bid_amount"]
[1758290506509,2.9134286,242.25,242.16,7.18]
[1758290506708,10.353,242.27,242.16,7.18]
[1758290506902,2.91332547,242.26,242.16,7.18]
[1758290507099,10.353,242.27,242.19,7.18]
[1758290507305,6.64,242.27,242.19,7.18]
[1758290507603,3.7126,242.3,242.19,7.18]
[1758290507800,2.9128217,242.29,242.19,7.18]
[1758290507996,6.64,242.31,242.19,7.18]
[1758290507997,3.7129,242.28,242.19,7.18]
[1758290508409,6.64,242.31,242.22,3.7136]
[1758290508605,6.62492343,242.3,242.17,57.7813]
[1758290508904,2.91242343,242.29,242.18,7.18]
[1758290509109,6.64,242.31,242.22,3.7137]
[1758290509409,2.91194104,242.3,242.18,7.18]
[1758290509608,9.55194104,242.29,242.18,7.18]
[1758290509804,2.91194104,242.28,242.18,7.18]
[1758290510006,6.64,242.29,242.18,7.18]
[1758290511913,3.7131,242.27,242.2,3.7139]
[1758290512408,3.7132,242.26,242.18,10.8943]
[1758290512810,3.7132,242.26,242.18,7.18]
[1758290513811,3.7132,242.26,242.19,3.7141]
[1758290514107,3.7128,242.28,242.19,3.7141]
[1758290514411,6.64,242.29,242.21,3.7138]
[1758290514613,2.90093478,242.28,242.21,3.7138]
[1758290514815,6.64,242.29,242.23,3.7135]
[1758290516412,6.64,242.29,242.25,7.18]
[1758290517206,6.64,242.29,242.25,10.8931]
[1758290517514,6.64,242.33,242.25,10.8931]
[1758290517713,2.90084225,242.32,242.25,10.8931]
[1758290517918,10.3521,242.33,242.26,3.713]
[1758290518419,3.7117,242.36,242.25,19.69013646]
[1758290518716,2.89966607,242.35,242.25,19.69013646]
[1758290518911,2.89966607,242.34,242.25,7.18]
[1758290519112,3.7117,242.36,242.25,7.18]
[1758290519715,3.7119,242.35,242.28,3.7127]
[1758290520413,6.97,242.37,242.25,7.18]
[1758290520716,2.89834484,242.36,242.25,7.18]
[1758290521018,6.97,242.37,242.25,7.18]
[1758290521212,3.7116,242.36,242.28,3.7127]
[1758290521420,6.97,242.37,242.28,7.01]
[1758290521622,4.61566631,242.49,242.28,2.38530534]
[1758290521821,57.7013,242.51,242.28,2.38530534]
[1758290521822,6.97,242.46,242.29,7.01]
[1758290522014,2.89655217,242.45,242.29,7.01]
[1758290522320,6.97,242.43,242.29,7.01]
[1758290522921,3.7107,242.42,242.33,10.7219]
[1758290523116,6.97,242.43,242.33,7.01]
[1758290523315,6.97,242.42,242.26,7.01]
[1758290523718,84.15,242.42,242.26,7.01]
[1758290524022,6.97,242.38,242.26,7.01]
[1758290524817,6.97,242.38,242.3,3.7125]
[1758290525524,10.6814,242.38,242.27,3.713]
[1758290525822,6.97,242.38,242.27,3.713]
[1758290526021,6.97,242.38,242.26,7.01]
[1758290526221,0.02605847,242.35,242.26,7.01]
[1758290527820,0.02605847,242.35,242.3,3.7124]
[1758290528028,6.99605847,242.35,242.3,10.7224]
[1758290530131,6.99605847,242.35,242.31,3.7122]
[1758290530423,0.02605847,242.35,242.28,1.5254918]
[1758290530624,0.02605847,242.35,242.31,1.5254918]
[1758290531030,0.02605847,242.35,242.32,7.01]
[1758290531231,0.02605847,242.35,242.34,8.5354918]
[1758290533631,6.97,242.45,242.37,3.7114]
[1758290535634,6.97,242.45,242.38,3.7111]
[1758290537635,6.97,242.45,242.37,1.5254918]
[1758290538135,6.97,242.45,242.37,5.2367918]
[1758290539233,3.7102,242.46,242.34,10.7218]
[1758290539430,1.5254918,242.42,242.34,3.7118]
[1758290539736,6.97,242.41,242.34,3.7118]
[1758290540138,6.97,242.42,242.36,0.02654564]
[1758290541626,10.6808,242.42,242.36,0.02654564]
[1758290542432,6.97,242.42,242.36,0.02654564]
[1758290544432,3.7109,242.41,242.36,0.02654564]
[1758290544843,6.97,242.4,242.36,0.02654564]
[1758290545745,6.97,242.42,242.36,0.02654564]
[1758290546935,10.6808,242.42,242.36,0.02654564]
[1758290550146,6.97,242.42,242.36,0.02654564]
[1758290554650,10.6808,242.42,242.36,0.02654564]
[1758290556859,8.0354918,242.4,242.36,0.02654564]
[1758290557048,8.0354918,242.37,242.36,0.02654564]
[1758290557951,11.34912261,242.37,242.36,0.02654564]
[1758290558747,57.7368,242.36,242.18,6.99]
[1758290558957,6.51,242.3,242.18,19.20909178]
[1758290559260,10.2229,242.28,242.19,5.2396918]
[1758290559453,10.2229,242.28,242.19,1.5254918]
[1758290559860,2.89615292,242.27,242.14,3.7149]
[1758290560062,9.40615292,242.26,242.14,1.5254918]
[1758290560352,0.02616155,242.23,242.15,3.7148]
[1758290560561,0.02616155,242.23,242.21,6.99]
[1758290563566,0.02616155,242.23,242.21,10.7038]
[1758290563973,6.53616155,242.23,242.22,1.5254918]
[1758290564362,6.51,242.22,242.18,3.7143]
[1758290564563,6.51,242.22,242.2,1.5254918]
[1758290564864,0.02616155,242.23,242.2,5.2394918]
[1758290565262,0.02616155,242.23,242.22,10.7037]
[1758290565763,0.02616155,242.23,242.22,6.99]
[1758290565967,0.02616155,242.23,242.21,3.7139]
[1758290566368,0.02616155,242.23,242.22,1.5254918]
[1758290566563,0.02616155,242.23,242.19,1.5254918]
[1758290566760,0.02616155,242.23,242.17,1.5254918]
[1758290567469,6.51,242.22,242.17,1.5254918]
[1758290567669,6.53616155,242.23,242.17,1.5254918]
[1758290568264,6.51,242.22,242.13,1.5254918]
[1758290568767,6.51,242.22,242.16,1.5254918]
[1758290569272,6.51,242.22,242.19,1.5254918]
[1758290569770,6.51,242.22,242.16,1.5254918]
[1758290569974,6.51,242.22,242.13,1.5254918]
[1758290570172,6.51,242.22,242.14,1.5254918]
[1758290570372,6.51,242.22,242.14,5.2403918]
[1758290570573,6.51,242.22,242.14,1.5254918]
[1758290571569,3.7131,242.26,242.17,1.5254918]
[1758290571773,10.2231,242.26,242.17,8.5154918]
[1758290572164,6.51,242.25,242.17,8.5154918]
[1758290572671,6.51,242.25,242.17,6.99]
[1758290572868,6.51,242.25,242.18,3.7143]
[1758290573074,3.7127,242.29,242.21,8.5154918]
[1758290573075,0.02603737,242.23,242.21,8.5154918]
[1758290573266,0.02603737,242.23,242.19,1.5254918]
[1758290573567,6.51,242.22,242.19,1.5254918]
[1758290573969,0.02603737,242.23,242.18,3.7143]
[1758290574173,6.51,242.22,242.18,3.7143]
[1758290574563,0.02603737,242.23,242.18,3.7143]
[1758290574765,6.51,242.22,242.18,3.7143]
[1758290575269,0.02603737,242.23,242.2,3.714]
[1758290575472,0.02603737,242.23,242.22,8.5154918]
[1758290577366,0.02603737,242.23,242.22,12.2291918]
[1758290577566,6.51,242.31,242.22,8.5154918]
[1758290577776,6.51,242.31,242.25,1.5254918]
[1758290578176,6.51,242.31,242.22,6.99]
[1758290578378,6.51,242.31,242.25,1.5254918]
[1758290578568,6.51,242.31,242.25,5.2386918]
[1758290578768,6.51,242.31,242.22,6.99]
[1758290578968,6.51,242.31,242.23,1.5254918]
[1758290579375,6.51,242.31,242.24,3.7134]
[1758290579772,6.51,242.31,242.22,8.5154918]
[1758290579978,7.09,242.3,242.19,1.5254918]
[1758290580579,7.09,242.28,242.19,1.5254918]
[1758290581182,7.09,242.28,242.19,5.2394918]
[1758290581377,7.09,242.28,242.19,1.5254918]
[1758290581774,7.09,242.28,242.2,3.7139]
[1758290582073,7.09,242.28,242.2,6.65]
[1758290582277,7.09,242.33,242.22,1.5254918]
[1758290582775,3.7123,242.32,242.22,5.2391918]
[1758290583475,3.7123,242.32,242.24,3.7133]
[1758290583878,3.7123,242.32,242.22,1.5254918]
[1758290584777,3.7123,242.32,242.22,5.2390918]
[1758290584981,7.09,242.3,242.22,1.5254918]
[1758290585182,7.09,242.3,242.2,6.65]
[1758290585380,7.09,242.3,242.2,8.1754918]
[1758290585579,7.09,242.3,242.2,11.8893918]
[1758290585793,7.09,242.3,242.2,10.3639]
[1758290586078,7.09,242.3,242.2,6.65]
[1758290586784,7.09,242.3,242.2,10.364]
[1758290587283,7.09,242.3,242.22,1.5254918]
[1758290587482,7.09,242.3,242.23,6.65]
[1758290587987,7.09,242.3,242.24,3.7134]
[1758290588481,7.09,242.36,242.28,1.5254918]
[1758290588688,7.09,242.36,242.29,3.7126]
[1758290589184,78.49850831,242.37,242.33,6.65]
[1758290589780,78.49850831,242.37,242.32,3.7121]
[1758290589781,85.58850831,242.37,242.32,3.7121]
[1758290590987,7.09,242.36,242.32,3.7121]
[1758290591989,7.09,242.36,242.29,6.65]
[1758290592483,78.49850831,242.37,242.32,10.3621]
[1758290592675,78.49850831,242.37,242.32,3.7121]
[1758290592879,7.09,242.4,242.32,3.7121]
[1758290593086,10.801,242.4,242.31,6.65]
[1758290593689,10.801,242.4,242.31,10.3622]
[1758290594092,7.09,242.47,242.32,6.65]
[1758290594792,7.09,242.47,242.36,6.65]
[1758290595390,7.09,242.47,242.36,10.3614]
[1758290595788,3.7098,242.48,242.36,10.3614]
[1758290595994,7.09,242.47,242.36,10.3614]
[1758290596488,7.09,242.47,242.36,6.65]
[1758290596693,7.09,242.47,242.38,3.7113]
[1758290597089,0.71820696,242.5,242.41,60.10679845]
[1758290597283,7.09,242.58,242.45,6.65]
[1758290597691,7.09,242.6,242.45,6.65]
[1758290597891,7.09,242.58,242.45,6.65]
[1758290598095,7.09,242.56,242.45,6.65]
[1758290600696,7.09,242.56,242.45,10.3601]
[1758290601095,0.71783659,242.61,242.46,6.65]
[1758290601299,7.09,242.6,242.46,6.65]
[1758290602104,7.09,242.6,242.48,3.7097]
[1758290602297,7.09,242.6,242.49,6.65]
[1758290602995,7.09,242.6,242.5,3.7094]
[1758290603192,0.71783659,242.61,242.51,9.03319845]
[1758290603394,7.09,242.65,242.52,6.65]
[1758290603801,7.09,242.65,242.54,3.7088]
[1758290604004,7.09,242.65,242.52,6.65]
[1758290604803,7.09,242.65,242.56,3.7084]
[1758290605003,7.09,242.65,242.52,6.65]
[1758290606900,7.09,242.65,242.52,10.3591]
[1758290608602,7.09,242.65,242.54,3.7088]
[1758290609001,7.09,242.65,242.54,10.5288]
[1758290609804,7.09,242.65,242.54,6.82]
[1758290613707,3.7073,242.64,242.54,6.82]
[1758290614608,7.09,242.65,242.54,6.82]
[1758290615204,10.7971,242.65,242.54,10.5288]
[1758290615399,7.09,242.65,242.54,10.5288]
[1758290616912,10.7972,242.65,242.54,10.5288]
[1758290618105,24.08319845,242.67,242.43,6.82]
[1758290618106,7.0,242.62,242.43,6.82]
[1758290618307,7.0,242.58,242.43,6.82]
[1758290619815,3.7087,242.55,242.45,3.7102]
[1758290620114,10.7087,242.55,242.45,3.7102]
[1758290621010,3.709,242.53,242.45,3.7102]
[1758290621211,3.709,242.53,242.43,6.82]
[1758290621410,7.0,242.52,242.43,6.82]
[1758290621813,2.38319845,242.51,242.43,6.82]
[1758290622413,2.38319845,242.51,242.4,3.711]
[1758290622414,10.7096,242.49,242.4,3.711]
[1758290625520,7.0,242.49,242.41,6.82]
[1758290625711,9.38319845,242.52,242.41,6.82]
[1758290627012,3.7093,242.51,242.41,10.5307]
[1758290627219,7.0,242.52,242.41,6.82]
[1758290628118,10.7091,242.52,242.42,3.7105]
[1758290629119,10.7091,242.52,242.44,3.7104]
[1758290629321,3.7091,242.52,242.37,57.733]
[1758290629816,2.38319845,242.51,242.35,57.7373]
[1758290630522,3.7097,242.49,242.4,3.711]
[1758290632025,3.7099,242.48,242.4,3.711]
[1758290632721,2.38319845,242.53,242.42,3.7106]
[1758290632722,3.7094,242.51,242.42,3.7106]
[1758290633426,2.38319845,242.53,242.38,3.7112]
[1758290633624,2.87130636,242.52,242.38,3.7112]
[1758290633825,3.7098,242.48,242.39,3.711]
[1758290634024,3.7098,242.48,242.34,2.38319845]
[1758290634325,3.7098,242.48,242.39,3.711]
[1758290635327,3.7098,242.48,242.4,3.7108]
[1758290637326,3.7094,242.5,242.4,3.7108]
[1758290637823,2.38319845,242.53,242.4,3.7108]
[1758290638025,2.87739863,242.52,242.4,3.7108]
[1758290638217,2.87739863,242.51,242.38,3.7113]
[1758290638423,2.87739863,242.5,242.33,12.46889963]
[1758290638725,2.38319845,242.49,242.3,311.7]
[1758290638922,2.87739863,242.48,242.3,311.7]
[1758290639428,2.87739863,242.48,242.3,324.12093751]
[1758290639643,57.7108,242.47,242.3,324.12093751]
[1758290639929,2.38319845,242.45,242.3,324.12093751]
[1758290640229,6.58789863,242.44,242.33,3.712]
[1758290640529,2.87739863,242.43,242.33,3.712]
[1758290640733,2.87739863,242.42,242.3,324.12093751]
[1758290640931,2.38319845,242.46,242.3,324.12093751]
[1758290641231,2.88070321,242.45,242.31,57.7477]
[1758290641430,2.88070321,242.44,242.37,3.7114]
[1758290641624,82.26,242.47,242.37,3.7114]
[1758290641824,2.880305,242.46,242.37,3.7114]
[1758290642027,2.880305,242.45,242.37,3.7114]
[1758290642229,2.38319845,242.52,242.34,57.7411]
[1758290642429,2.87944708,242.51,242.36,57.7363]
[1758290642730,2.87944708,242.5,242.36,57.7363]
[1758290642931,2.87944708,242.49,242.36,57.7363]
[1758290643133,102.02,242.55,242.38,57.7316]
[1758290643332,2.87912873,242.54,242.38,57.7316]
[1758290643532,2.87912873,242.53,242.38,57.7316]
[1758290643832,2.87912873,242.52,242.44,3.7102]
[1758290644028,2.38319845,242.56,242.37,2.38319845]
[1758290644233,60.57009457,242.55,242.35,28.64]
[1758290644429,3.7098,242.48,242.35,28.64]
[1758290644732,57.6913,242.55,242.34,2.38319845]
[1758290644928,3.7095,242.5,242.38,3.7113]
[1758290645230,2.38319845,242.56,242.36,57.735]
[1758290645432,2.87854895,242.55,242.37,57.7339]
[1758290645634,3.7093,242.52,242.42,3.7106]
[1758290645834,2.87854895,242.51,242.42,3.7106]
[1758290646234,3.7094,242.5,242.4,3.7109]
[1758290646924,3.7094,242.5,242.42,3.7107]
[1758290647834,3.7092,242.52,242.42,3.7107]
[1758290648034,2.87827262,242.51,242.42,3.7107]
[1758290648337,60.07359845,242.56,242.42,3.7107]
[1758290648536,2.87831926,242.55,242.42,3.7107]
[1758290648730,3.7094,242.51,242.44,3.7103]
[1758290649432,3.7089,242.54,242.44,3.7103]
[1758290649729,2.87861332,242.53,242.44,3.7103]
[1758290649935,3.7089,242.54,242.44,3.7103]
[1758290650135,2.87861289,242.53,242.44,3.7103]
[1758290650337,3.7089,242.54,242.44,3.7103]
[1758290650532,2.87921399,242.53,242.41,57.7226]
[1758290650737,102.0,242.56,242.41,57.7226]
[1758290651035,3.7087,242.55,242.43,3.7105]
[1758290651231,3.7087,242.55,242.39,57.7291]
[1758290651431,3.7087,242.55,242.4,57.7267]
[1758290651730,5.23242769,242.55,242.42,1.52372769]
[1758290652035,1.52372769,242.55,242.42,1.52372769]
[1758290652335,1.52372769,242.58,242.45,59.23872769]
[1758290652533,1.52372769,242.58,242.51,3.7091]
[1758290652739,73.34161229,242.59,242.51,3.7091]
[1758290654442,73.34161229,242.59,242.52,3.709]
[1758290655244,73.34161229,242.59,242.51,1.52372769]
[1758290655438,413.64,242.65,242.51,1.52372769]
[1758290655639,2.88004604,242.64,242.51,1.52372769]
[1758290655839,2.88004604,242.63,242.5,1.52372769]
[1758290656035,1.52372769,242.62,242.5,1.52372769]
[1758290656539,1.52372769,242.62,242.55,3.7087]
[1758290657742,2.88075755,242.61,242.52,3.709]
[1758290657943,1.52372769,242.62,242.52,3.709]
[1758290658237,2.88124683,242.61,242.52,3.709]
[1758290658442,1.52372769,242.62,242.52,3.709]
[1758290658644,2.88103531,242.61,242.52,3.709]
[1758290658839,5.23132769,242.62,242.52,3.709]
[1758290659034,2.88103458,242.61,242.54,3.7088]
[1758290659234,5.23132769,242.62,242.54,3.7088]
[1758290659538,2.88139669,242.61,242.54,3.7088]
[1758290659735,1.52372769,242.62,242.54,3.7088]
[1758290659933,2.88139669,242.61,242.54,3.7088]
[1758290660138,1.52372769,242.62,242.54,3.7088]
[1758290660345,2.88224446,242.61,242.54,3.7088]
[1758290660547,1.52372769,242.62,242.54,3.7088]
[1758290660744,2.88261708,242.61,242.54,3.7088]
[1758290660944,1.52372769,242.62,242.54,3.7088]
[1758290661145,2.88261708,242.61,242.54,3.7088]
[1758290661347,1.52372769,242.63,242.54,3.7088]
[1758290661548,2.88300105,242.62,242.54,3.7088]
[1758290661844,2.88300105,242.61,242.51,3.7092]
[1758290662153,1.52372769,242.63,242.51,3.7092]
[1758290662354,2.88302352,242.62,242.51,3.7092]
[1758290662550,2.88302352,242.61,242.51,3.7092]
[1758290662751,2.88302352,242.6,242.51,3.7092]
[1758290662959,1.52372769,242.6,242.51,3.7092]
[1758290663654,2.88377815,242.59,242.51,3.7092]
[1758290663856,369.369,242.65,242.47,1.52372769]
[1758290664054,1.52372769,242.59,242.47,1.52372769]
[1758290664251,5.23192769,242.59,242.47,1.52372769]
[1758290664453,311.7,242.65,242.5,3.7093]
[1758290664759,3.7076,242.63,242.46,57.7113]
[1758290665055,4.40722067,242.62,242.5,1.52372769]
[1758290665254,2.88349298,242.61,242.5,1.52372769]
[1758290665556,2.88349298,242.6,242.5,1.52372769]
[1758290665756,1.52372769,242.62,242.5,1.52372769]
[1758290665952,6.59101799,242.61,242.52,3.7091]
[1758290666153,2.88311799,242.6,242.44,81.3574]
[1758290666455,1.52372769,242.6,242.48,1.52372769]
[1758290667660,369.3687,242.65,242.48,1.52372769]
[1758290667860,1.52372769,242.62,242.48,1.52372769]
[1758290668058,2.88249751,242.61,242.48,1.52372769]
[1758290668260,6.59049751,242.6,242.51,3.7092]
[1758290668461,3.708,242.6,242.51,3.7092]
[1758290668760,3.708,242.6,242.49,3.7096]
[1758290669156,3.708,242.6,242.48,1.52372769]
[1758290670661,3.7082,242.59,242.5,3.7093]
[1758290671160,3.7082,242.59,242.43,29.42]
[1758290671357,1.52372769,242.63,242.44,57.7175]
[1758290671558,2.88165093,242.62,242.49,1.52372769]
[1758290671859,1.52372769,242.57,242.47,3.7098]
[1758290672565,3.7086,242.56,242.48,3.7096]
[1758290674670,1.52372769,242.59,242.48,3.7096]
[1758290674866,311.7,242.65,242.52,1.52372769]
[1758290676068,11.9,242.64,242.52,5.23272769]
[1758290676372,2.8812806,242.63,242.52,1.52372769]
[1758290676571,11.9,242.64,242.52,1.52372769]
[1758290676868,2.88112837,242.63,242.52,1.52372769]
[1758290677071,11.9,242.64,242.52,1.52372769]
[1758290677369,2.88112837,242.63,242.46,57.7126]
[1758290677561,11.9,242.64,242.52,1.52372769]
[1758290677760,3.7078,242.62,242.51,1.52372769]
[1758290678460,1.52372769,242.63,242.53,3.7089]
[1758290678873,101.56,242.64,242.47,57.7087]
[1758290678874,101.56,242.64,242.54,5.23242769]
[1758290679075,2.88093052,242.63,242.54,5.23242769]
[1758290679374,101.56,242.64,242.54,5.23242769]
[1758290679674,1.52372769,242.66,242.54,5.23242769]
[1758290679869,104.42078895,242.65,242.54,5.23242769]
[1758290680067,4.61566631,242.74,242.57,1.52372769]
[1758290680266,1.52372769,242.7,242.57,1.52372769]
[1758290680472,2.88058853,242.69,242.57,1.52372769]
[1758290680768,2.88058853,242.68,242.57,1.52372769]
[1758290681072,2.88058853,242.67,242.57,1.52372769]
[1758290681265,6.58706383,242.66,242.55,1.52372769]
[1758290681465,3.707,242.66,242.55,1.52372769]
[1758290681771,1.52372769,242.68,242.55,1.52372769]
[1758290681968,3.7073,242.65,242.55,1.52372769]
[1758290682772,1.52372769,242.68,242.56,3.7085]
[1758290683073,2.87988747,242.67,242.56,3.7085]
[1758290683273,2.87988747,242.66,242.56,3.7085]
[1758290683475,6.58718747,242.65,242.56,12.57202019]
[1758290683668,3.7073,242.65,242.54,3.7088]
[1758290684171,3.7073,242.65,242.55,1.52372769]
[1758290684779,1.52372769,242.68,242.52,3.7091]
[1758290685071,4.40451953,242.67,242.54,1.52372769]
[1758290685276,2.88079184,242.66,242.57,1.52372769]
[1758290685476,1.52372769,242.71,242.59,5.23172769]
[1758290685776,2.88036216,242.7,242.59,5.23172769]
[1758290685976,2.88036216,242.69,242.59,1.52372769]
[1758290686175,2.88036216,242.68,242.52,57.6972]
[1758290686378,1.52372769,242.71,242.58,1.52372769]
[1758290686677,6.5875236,242.7,242.58,1.52372769]
[1758290686876,2.8811236,242.69,242.58,1.52372769]
[1758290687075,2.8811236,242.68,242.58,1.52372769]
[1758290687277,2.8811236,242.67,242.58,1.52372769]
[1758290687477,1.52372769,242.71,242.51,17.7]
[1758290687777,3.7072,242.65,242.56,3.7085]
[1758290687978,1.52372769,242.71,242.57,1.52372769]
[1758290688181,2.88158715,242.7,242.57,1.52372769]
[1758290688381,3.7069,242.67,242.57,1.52372769]
[1758290688576,1.52372769,242.71,242.57,1.52372769]
[1758290688780,2.88158454,242.7,242.57,1.52372769]
[1758290688980,2.88158454,242.69,242.57,1.52372769]
[1758290689176,2.88158454,242.69,242.5,57.7019]
[1758290689177,3.7072,242.65,242.54,3.7088]
[1758290689483,10.5572,242.65,242.55,8.33372769]
[1758290689980,3.7075,242.63,242.55,8.33372769]
[1758290690182,8.37372769,242.65,242.55,6.81]
[1758290691084,3.7078,242.61,242.55,6.81]
[1758290692983,10.558,242.6,242.55,6.81]
[1758290693284,6.85,242.59,242.55,6.81]
[1758290693486,3.7082,242.58,242.55,6.81]
[1758290693879,10.5582,242.58,242.55,6.81]
[1758290694185,10.5582,242.58,242.51,6.81]
[1758290694385,3.708,242.6,242.51,6.81]
[1758290694685,3.708,242.6,242.52,6.81]
[1758290695286,6.85,242.62,242.52,10.519]
[1758290695486,2.88482426,242.61,242.52,10.519]
[1758290695785,2.88482426,242.6,242.53,6.81]
[1758290696087,6.85,242.62,242.53,6.81]
[1758290696281,2.88482383,242.61,242.53,6.81]
[1758290696482,2.88482383,242.6,242.53,6.81]
[1758290696780,2.88482383,242.59,242.53,6.81]
[1758290696988,6.85,242.62,242.54,3.7088]
[1758290697279,2.88572547,242.61,242.55,6.81]
[1758290697484,6.85,242.62,242.55,6.81]
[1758290698482,6.85,242.62,242.56,3.7084]
[1758290698682,8.58372769,242.65,242.56,3.7084]
[1758290698888,2.88536421,242.64,242.56,3.7084]
[1758290699083,2.88536421,242.63,242.56,3.7084]
[1758290699385,2.88536421,242.62,242.56,3.7084]
[1758290699585,3.7075,242.64,242.56,3.7084]
[1758290699777,2.88548402,242.63,242.56,3.7084]
[1758290699981,2.88548402,242.62,242.56,3.7084]
[1758290700175,3.7075,242.64,242.56,3.7084]
[1758290700385,3.7075,242.64,242.55,6.81]
[1758290700386,2.88548402,242.63,242.55,6.81]
[1758290700581,2.88548402,242.62,242.55,6.81]
[1758290700781,7.06,242.65,242.55,6.81]
[1758290700981,1.52372769,242.67,242.55,6.81]
[1758290700982,6.51,242.63,242.55,6.81]
[1758290701181,2.88555929,242.62,242.55,6.81]
[1758290701382,2.88568863,242.61,242.55,6.81]
[1758290701585,6.51,242.63,242.55,6.81]
[1758290701779,2.88568906,242.62,242.55,6.81]
[1758290701982,2.88568906,242.61,242.55,6.81]
[1758290702285,6.51,242.69,242.58,1.52372769]
[1758290702485,2.88507726,242.68,242.59,7.05]
[1758290702684,2.88507726,242.67,242.59,7.05]
[1758290702884,2.88507726,242.66,242.59,7.05]
[1758290703089,6.51,242.69,242.62,7.05]
[1758290703391,2.88473022,242.68,242.62,7.05]
[1758290703690,2.88473022,242.67,242.62,3.7075]
[1758290703884,6.51,242.69,242.63,7.05]
[1758290704084,6.51,242.67,242.63,7.05]
[1758290704989,10.2167,242.69,242.63,7.05]
[1758290705290,6.51,242.67,242.63,7.05]
[1758290705588,6.51,242.67,242.59,7.05]
[1758290707190,6.51,242.67,242.61,7.05]
[1758290708686,3.7068,242.68,242.61,7.05]
[1758290708892,3.7064,242.7,242.61,10.7576]
[1758290709091,2.88182388,242.69,242.61,10.7576]
[1758290709293,2.88182388,242.68,242.61,10.7576]
[1758290709491,2.88169688,242.67,242.61,7.05]
[1758290709693,6.51,242.67,242.61,7.05]
[1758290710790,6.51,242.67,242.62,3.7076]
[1758290710997,3.7065,242.69,242.63,7.05]
[1758290711188,2.88159964,242.68,242.63,7.05]
[1758290711388,3.7065,242.69,242.63,7.05]
[1758290711588,9.39152248,242.68,242.63,7.05]
[1758290711885,6.51,242.68,242.62,10.7576]
[1758290712094,6.51,242.68,242.62,7.05]
[1758290712296,10.2168,242.68,242.62,7.05]
[1758290712888,6.51,242.68,242.62,7.05]
[1758290713296,3.7064,242.7,242.62,7.05]
[1758290713590,6.51,242.68,242.62,7.05]
[1758290713792,2.88137806,242.67,242.57,7.05]
[1758290713996,6.51,242.68,242.57,7.05]
[1758290714293,2.88137806,242.67,242.58,3.7081]
[1758290714595,6.51,242.68,242.58,3.7081]
[1758290714788,6.51,242.65,242.58,3.7081]
[1758290714989,6.51,242.65,242.57,7.05]
[1758290716088,2.88208419,242.64,242.57,7.05]
[1758290716293,6.51,242.65,242.57,7.05]
[1758290716606,2.37839006,242.62,242.49,7.05]
[1758290716898,3.7079,242.6,242.49,7.05]
[1758290717091,6.51,242.66,242.49,7.05]
[1758290717292,6.51,242.64,242.49,7.05]
[1758290717489,2.88293335,242.63,242.49,7.05]
[1758290717689,2.88293335,242.63,242.55,3.7085]
[1758290717890,2.88293335,242.63,242.56,7.05]
[1758290718696,6.59043335,242.63,242.56,7.05]
[1758290718896,2.88293335,242.62,242.56,7.05]
[1758290721002,6.51,242.64,242.56,7.05]
[1758290721301,2.86577001,242.63,242.56,7.05]
[1758290721497,2.86577001,242.62,242.56,7.05]
[1758290721698,6.51,242.64,242.56,7.05]
[1758290721893,2.86597708,242.63,242.56,7.05]
[1758290722094,6.51,242.64,242.56,7.05]
[1758290722291,2.8658754,242.63,242.56,7.05]
[1758290722500,6.51,242.64,242.56,7.05]
[1758290722700,2.86610691,242.63,242.56,7.05]
[1758290722890,10.2175,242.64,242.56,7.05]
[1758290723098,2.86610691,242.63,242.56,7.05]
[1758290723298,10.2175,242.64,242.56,7.05]